fUST/lending_fUST_20240929
["ID","MTS","AMOUNT","RATE_DAILY","PERIOD"]
[339386736,1727539222193,21718.17,0.0002,2]
[339386739,1727539365618,174.6172807,0.00019427,2]
[339386740,1727539393265,150.0,0.000197,2]
[339386742,1727539503577,836.755664,0.00019957,2]
[339386780,1727539631149,-248.1944,0.00020019,2]
[339386781,1727539631170,-161.246461,0.00020066,2]
[339386782,1727539631191,-5.41181075,0.00020074,2]
[339386783,1727539632178,-242.78258925,0.00020074,2]
[339386784,1727539632202,-248.1944,0.00020129,2]
[339386785,1727539632225,-248.1944,0.00020184,2]
[339386786,1727539632247,-248.1944,0.00020239,2]
[339386787,1727539632271,-248.1944,0.00020293,2]
[339386788,1727539632296,-248.1944,0.00020348,2]
[339386789,1727539632318,-155.02308535,0.00020376,3]
[339386790,1727539632340,-248.1944,0.00020403,2]
[339386791,1727539632363,-248.1944,0.00020458,2]
[339386792,1727539632385,-1744.42064855,0.00020476,2]
[339386796,1727539653099,-518.7063075,0.0002002,2]
[339386797,1727539653123,-939.97555785,0.00020476,2]
[339386804,1727539750163,-540.025126,0.00020476,2]
[339386805,1727539750187,-248.1944,0.00020513,2]
[339386806,1727539750212,-248.1944,0.00020568,2]
[339386807,1727539750235,-248.1944,0.00020623,2]
[339386808,1727539750257,-248.1944,0.00020678,2]
[339386809,1727539750280,-248.1944,0.00020733,2]
[339386810,1727539750302,-151.38629372,0.00020767,2]
[339386811,1727539750324,-151.3862937,0.00020782,2]
[339386812,1727539750349,-248.1944,0.00020788,2]
[339386813,1727539750373,-151.3862937,0.00020797,2]
[339386814,1727539750397,-449.97440749,0.00020842,2]
[339386815,1727539751135,-384.99789751,0.00020842,2]
[339386816,1727539751157,-248.1944,0.00020842,2]
[339386817,1727539751178,-300.0,0.00020867,2]
[339386818,1727539751199,-300.0,0.00020867,2]
[339386819,1727539751220,-2718.76822534,0.00020868,2]
[339386820,1727539753106,-4494.44759725,0.00020868,2]
[339386821,1727539753138,-3081.77994861,0.00020868,2]
[339386822,1727539753163,-248.1944,0.00020897,2]
[339386823,1727539753187,-248.1944,0.00020952,2]
[339386824,1727539753209,-248.1944,0.00021007,2]
[339386825,1727539753231,-248.1944,0.00021062,2]
[339386826,1727539753253,-500.0,0.00021198,2]
[339386827,1727539753274,-206.676818,0.00021198,2]
[339386828,1727539753296,-500.0,0.00021198,2]
[339386829,1727539753321,-500.0,0.00021198,2]
[339386830,1727539753343,-500.0,0.00021198,2]
[339386831,1727539753366,-500.0,0.00021198,2]
[339386832,1727539753389,-500.0,0.00021198,2]
[339386833,1727539753412,-500.0,0.00021198,2]
[339386834,1727539753436,-500.0,0.00021198,2]
[339386835,1727539753458,-500.0,0.00021198,2]
[339386836,1727539753480,-500.0,0.00021198,2]
[339386837,1727539753501,-455.72843547,0.00021198,2]
[339386838,1727539757114,-44.27156453,0.00021198,2]
[339386839,1727539757144,-500.0,0.00021198,2]
[339386840,1727539757165,-500.0,0.00021198,2]
[339386841,1727539757186,-347.41680406,0.00021198,2]
[339386842,1727539757209,-500.0,0.00021198,2]
[339386843,1727539757231,-489.50320229,0.00021198,2]
[339386844,1727539757253,-194.78111844,0.00021198,2]
[339386845,1727539757276,-500.0,0.00021198,2]
[339386846,1727539757296,-500.0,0.00021198,2]
[339386847,1727539757317,-500.0,0.00021198,2]
[339386848,1727539757340,-500.0,0.00021198,2]
[339386849,1727539757360,-500.0,0.00021198,2]
[339386850,1727539757380,-500.0,0.00021198,2]
[339386851,1727539757401,-500.0,0.00021198,2]
[339386852,1727539757422,-500.0,0.00021198,2]
[339386853,1727539757444,-500.0,0.00021198,2]
[339386854,1727539757466,-500.0,0.00021198,2]
[339386855,1727539757488,-500.0,0.00021198,2]
[339386856,1727539757509,-500.0,0.00021198,2]
[339386857,1727539757532,-500.0,0.00021198,2]
[339386858,1727539757553,-500.0,0.00021198,2]
[339386859,1727539757573,-500.0,0.00021198,2]
[339386860,1727539757593,-500.0,0.00021198,2]
[339386861,1727539757614,-500.0,0.00021198,2]
[339386862,1727539757635,-500.0,0.00021198,2]
[339386863,1727539757655,-500.0,0.00021198,2]
[339386864,1727539757674,-500.0,0.00021198,2]
[339386865,1727539757695,-500.0,0.00021198,2]
[339386866,1727539757716,-500.0,0.00021198,2]
[339386867,1727539757737,-500.0,0.00021198,2]
[339386868,1727539757758,-500.0,0.00021198,2]
[339386869,1727539757779,-500.0,0.00021198,2]
[339386870,1727539757800,-500.0,0.00021198,2]
[339386871,1727539757821,-500.0,0.00021198,2]
[339386872,1727539757843,-500.0,0.00021198,2]
[339386873,1727539757864,-500.0,0.00021198,2]
[339386874,1727539757884,-500.0,0.00021198,2]
[339386875,1727539757905,-500.0,0.00021198,2]
[339386876,1727539757927,-500.0,0.00021198,2]
[339386877,1727539757948,-500.0,0.00021198,2]
[339386878,1727539757970,-500.0,0.00021198,2]
[339386879,1727539757992,-65.20329823,0.00021198,2]
[339386880,1727539758145,-434.79670177,0.00021198,2]
[339386881,1727539758171,-500.0,0.00021198,2]
[339386882,1727539758195,-500.0,0.00021198,2]
[339386883,1727539758218,-500.0,0.00021198,2]
[339386884,1727539758241,-500.0,0.00021198,2]
[339386885,1727539758264,-500.0,0.00021198,2]
[339386886,1727539758287,-500.0,0.00021198,2]
[339386887,1727539758309,-500.0,0.00021198,2]
[339386888,1727539758332,-500.0,0.00021198,2]
[339386889,1727539758355,-354.10416415,0.00021198,2]
[339386890,1727539758377,-500.0,0.00021198,2]
[339386891,1727539758398,-500.0,0.00021198,2]
[339386892,1727539758421,-500.0,0.00021198,2]
[339386893,1727539758443,-500.0,0.00021198,2]
[339386894,1727539758465,-500.0,0.00021198,2]
[339386895,1727539758488,-500.0,0.00021198,2]
[339386896,1727539758509,-500.0,0.00021198,2]
[339386897,1727539758530,-500.0,0.00021198,2]
[339386898,1727539758552,-500.0,0.00021198,2]
[339386899,1727539758575,-500.0,0.00021198,2]
[339386900,1727539758596,-600.0,0.00021198,2]
[339386901,1727539758619,-500.0,0.00021198,2]
[339386902,1727539758641,-500.0,0.00021198,2]
[339386903,1727539758664,-500.0,0.00021198,2]
[339386904,1727539758687,-500.0,0.00021198,2]
[339386905,1727539758710,-500.0,0.00021198,2]
[339386906,1727539758732,-500.0,0.00021198,2]
[339386907,1727539758756,-500.0,0.00021198,2]
[339386908,1727539758780,-500.0,0.00021198,2]
[339386909,1727539758803,-500.0,0.00021198,2]
[339386910,1727539758827,-500.0,0.00021198,2]
[339386911,1727539758850,-500.0,0.00021198,2]
[339386912,1727539758871,-506.81495361,0.000212,2]
[339386913,1727539758893,-501.10476208,0.000214,2]
[339386914,1727539758915,-500.80956405,0.000214,2]
[339386915,1727539758937,-834.972305,0.00021527,2]
[339386916,1727539758958,-163.890532,0.00021627,2]
[339386917,1727539759276,-500.0,0.00022,30]
[339386918,1727539759301,-500.0,0.00022,30]
[339386919,1727539759321,-500.0,0.00022,30]
[339386920,1727539759342,-500.0,0.00022,30]
[339386921,1727539759363,-500.0,0.00022,30]
[339386922,1727539759384,-500.0,0.00022,30]
[339386923,1727539759404,-500.0,0.00022,30]
[339386924,1727539759426,-500.0,0.00022,30]
[339386925,1727539759446,-786.24214258,0.00022,30]
[339386926,1727539759467,-151.0,0.00022,2]
[339386927,1727539759489,-373.32251181,0.00022,2]
[339386928,1727539762233,-126.67748819,0.00022,2]
[339386929,1727539762254,-302.27461649,0.00022,2]
[339386930,1727539762274,-302.27461649,0.00022,2]
[339386931,1727539762294,-800.0,0.00022164,6]
[339386932,1727539762313,-800.0,0.00022164,6]
[339386933,1727539762334,-834.972305,0.00022212,2]
[339386935,1727539762356,-302.27461649,0.0002222,2]
[339386936,1727539762376,-302.27461649,0.0002222,2]
[339386937,1727539762397,-302.27461649,0.0002244,2]
[339386938,1727539762417,-302.27461649,0.0002244,2]
[339386939,1727539762437,-483.99922411,0.00022548,2]
[339386940,1727539762456,-401.39700942,0.00022559,2]
[339386941,1727539762477,-500.0,0.00022559,2]
[339386942,1727539762498,-263.72479151,0.00022559,2]
[339386943,1727539762629,-197.14162373,0.00022559,2]
[339386944,1727539762650,-500.0,0.00022559,2]
[339386945,1727539762675,-500.0,0.00022559,2]
[339386946,1727539762697,-500.0,0.00022559,2]
[339386947,1727539762719,-650.91961923,0.00022559,2]
[339386948,1727539762742,-184.60735405,0.00022559,2]
[339386949,1727539762766,-500.0,0.0002256,2]
[339386950,1727539762787,-302.27461649,0.0002266,2]
[339386951,1727539762808,-302.27461649,0.0002266,2]
[339386952,1727539762829,-420.0,0.00022701,2]
[339386953,1727539762849,-181.34642496,0.000228,2]
[339386954,1727539762872,-506.55010428,0.000228,2]
[339386955,1727539762893,-302.27461649,0.0002288,2]
[339386956,1727539762914,-302.27461649,0.0002288,2]
[339386957,1727539762936,-420.0,0.00022953,2]
[339386958,1727539762960,-453.41192473,0.000231,4]
[339386959,1727539762982,-453.41192473,0.000231,4]
[339386960,1727539763006,-453.41192473,0.0002332,4]
[339386961,1727539763031,-453.41192473,0.0002332,4]
[339386962,1727539763052,-453.41192473,0.0002354,4]
[339386963,1727539763073,-453.41192473,0.0002354,4]
[339386964,1727539763094,-1002.126849,0.000236,2]
[339386965,1727539763114,-311.72669739,0.0002366,2]
[339386966,1727539763136,-311.72669735,0.0002369,2]
[339386967,1727539763156,-311.72669735,0.0002372,2]
[339386968,1727539763176,-598.17,0.0002372,3]
[339386969,1727539763196,-299.08,0.0002372,3]
[339386970,1727539763216,-897.27,0.0002372,3]
[339386971,1727539763240,-25278.9688693,0.0002372,3]
[339386972,1727539763263,-1228.52984005,0.0002373,2]
[339387032,1727539833225,-152.03907526,0.00023362,2]
[339387033,1727539833235,-4280.88975652,0.00023673,2]
[339387034,1727539833267,-874.93861953,0.00023673,2]
[339387035,1727539833276,-300.0,0.00023729,2]
[339387036,1727539833285,-300.0,0.00023729,2]
[339387037,1727539833295,-280.9779066,0.00023729,2]
[339387038,1727539833304,-500.0,0.00023729,2]
[339387039,1727539833315,-355.64373346,0.00023729,2]
[339387040,1727539833325,-500.0,0.00023729,2]
[339387041,1727539833335,-1751.87656839,0.0002373,2]
[339387068,1727539839163,-431.0652359,0.00023729,2]
[339387072,1727539840750,-68.9347641,0.00023729,2]
[339387073,1727539840760,-165.50035581,0.00023729,2]
[339387074,1727539840771,-500.0,0.00023729,2]
[339387075,1727539840781,-500.0,0.00023729,2]
[339387076,1727539840791,-500.0,0.00023729,2]
[339387077,1727539840801,-500.0,0.00023729,2]
[339387078,1727539840811,-500.0,0.00023729,2]
[339387079,1727539840821,-500.0,0.00023729,2]
[339387080,1727539840831,-245.41041641,0.00023729,2]
[339387081,1727539840840,-24002.00986838,0.0002373,2]
[339387082,1727539840852,-1395.36593698,0.0002373,2]
[339387083,1727539840883,-582.04603108,0.0002373,2]
[339387097,1727539845354,-3702.47219928,0.0002363,2]
[339387098,1727539845363,-7267.12147124,0.0002373,2]
[339387104,1727539846649,-147889.51095776,0.0002373,2]
[339387105,1727539846658,-263.19469063,0.0002373,7]
[339387106,1727539846667,-14667.37263223,0.0002374,3]
[339387107,1727539846679,-4291.85401977,0.0002374,3]
[339387108,1727539846690,-4656.34798023,0.0002375,2]
[339387109,1727539846702,-5305.44394,0.0002375,2]
[339387110,1727539846718,-125575.84621002,0.0002375,2]
[339387111,1727539846727,-311.72669735,0.0002375,2]
[339387112,1727539846736,-453.41192473,0.0002376,4]
[339387113,1727539846746,-453.41192473,0.0002376,4]
[339387114,1727539846755,-1936.41481404,0.0002377,2]
[339387115,1727539846765,-193.16479581,0.00023773,2]
[339387116,1727539846776,-311.72669735,0.0002378,2]
[339387117,1727539846787,-6319.74221733,0.0002386,3]
[339387118,1727539846796,-56877.679956,0.0002386,3]
[339387119,1727539846805,-151.0,0.00023861,7]
[339387120,1727539846814,-482.715943,0.00023861,7]
[339387121,1727539846824,-482.715943,0.00023861,7]
[339387122,1727539846833,-465.578597,0.00023861,7]
[339387123,1727539846847,-465.578597,0.00023861,7]
[339387124,1727539846856,-1159.978145,0.00023861,7]
[339387125,1727539846866,-1159.978145,0.00023861,7]
[339387126,1727539846876,-151.0,0.00023861,7]
[339387127,1727539846886,-242.043553,0.00023861,7]
[339387128,1727539846895,-1601.408762,0.0002387,7]
[339387129,1727539846904,-1601.408762,0.0002387,7]
[339387130,1727539846914,-151.0,0.0002387,7]
[339387131,1727539846923,-2282.456769,0.0002387,7]
[339387132,1727539846933,-2282.456769,0.0002387,7]
[339387133,1727539846944,-151.0,0.0002387,7]
[339387134,1727539846955,-770.361099,0.0002387,7]
[339387135,1727539846965,-770.361099,0.0002387,7]
[339387136,1727539846975,-395.523762,0.0002387,7]
[339387137,1727539846986,-395.523762,0.0002387,7]
[339387138,1727539846996,-2797.342475,0.0002387,7]
[339387139,1727539847006,-2797.342475,0.0002387,7]
[339387140,1727539847017,-686.357184,0.0002387,7]
[339387141,1727539847029,-151.0,0.0002387,7]
[339387142,1727539847038,-686.357184,0.0002387,7]
[339387143,1727539847050,-151.0,0.0002387,7]
[339387144,1727539847059,-151.0,0.0002387,7]
[339387145,1727539847069,-159.567795,0.0002387,7]
[339387146,1727539847079,-151.0,0.0002387,7]
[339387147,1727539847089,-151.0,0.0002387,7]
[339387148,1727539847100,-156.431736,0.0002387,7]
[339387149,1727539847110,-151.0,0.0002387,7]
[339387150,1727539847120,-151.0,0.0002387,7]
[339387151,1727539847130,-216.719885,0.0002387,7]
[339387152,1727539847140,-216.719885,0.0002387,7]
[339387153,1727539847150,-151.0,0.0002387,7]
[339387154,1727539847161,-151.0,0.0002387,7]
[339387155,1727539847170,-1934.142406,0.0002387,7]
[339387156,1727539847180,-1934.142406,0.0002387,7]
[339387157,1727539847192,-198.731403,0.0002387,7]
[339387158,1727539847203,-198.731403,0.0002387,7]
[339387159,1727539847214,-425.201333,0.0002387,7]
[339387160,1727539847223,-425.201333,0.0002387,7]
[339387161,1727539847234,-662.502,0.0002387,7]
[339387162,1727539847245,-662.502,0.0002387,7]
[339387163,1727539847253,-662.502,0.0002387,7]
[339387164,1727539847263,-662.502,0.0002387,7]
[339387165,1727539847272,-660.961228,0.0002387,7]
[339387166,1727539847281,-151.0,0.0002387,7]
[339387167,1727539847294,-151.0,0.0002387,7]
[339387168,1727539847303,-151.0,0.0002387,7]
[339387169,1727539847313,-660.961228,0.0002387,7]
[339387170,1727539847322,-151.0,0.0002387,7]
[339387171,1727539847332,-291.307552,0.0002387,7]
[339387172,1727539847341,-446.367327,0.0002387,7]
[339387173,1727539847351,-446.367327,0.0002387,7]
[339387174,1727539847360,-446.367327,0.0002387,7]
[339387175,1727539847370,-446.367327,0.0002387,7]
[339387176,1727539847379,-258.577652,0.0002387,7]
[339387177,1727539847389,-258.577652,0.0002387,7]
[339387178,1727539847399,-1048.136604,0.0002387,7]
[339387179,1727539847408,-1048.136604,0.0002387,7]
[339387180,1727539847418,-368.274568,0.0002387,7]
[339387181,1727539847427,-368.274568,0.0002387,7]
[339387182,1727539847436,-368.274568,0.0002387,7]
[339387183,1727539847448,-368.274568,0.0002387,7]
[339387184,1727539847457,-1318.817283,0.0002387,7]
[339387185,1727539847466,-1318.817283,0.0002387,7]
[339387186,1727539847476,-1318.817283,0.0002387,7]
[339387187,1727539847485,-1318.817283,0.0002387,7]
[339387188,1727539847495,-12639.4844347,0.0002387,3]
[339387189,1727539847504,-1601.408762,0.0002388,7]
[339387190,1727539847514,-1601.408762,0.0002388,7]
[339387191,1727539847524,-151.0,0.0002388,7]
[339387192,1727539847534,-2282.456769,0.0002388,7]
[339387193,1727539847543,-2282.456769,0.0002388,7]
[339387194,1727539847552,-151.0,0.0002388,7]
[339387195,1727539847562,-770.361099,0.0002388,7]
[339387196,1727539847571,-770.361099,0.0002388,7]
[339387197,1727539847580,-395.523762,0.0002388,7]
[339387198,1727539847590,-395.523762,0.0002388,7]
[339387199,1727539847599,-2797.342475,0.0002388,7]
[339387200,1727539847609,-2797.342475,0.0002388,7]
[339387201,1727539847618,-686.357184,0.0002388,7]
[339387202,1727539847627,-151.0,0.0002388,7]
[339387203,1727539847637,-686.357184,0.0002388,7]
[339387204,1727539847646,-151.0,0.0002388,7]
[339387205,1727539847655,-151.0,0.0002388,7]
[339387206,1727539847664,-151.0,0.0002388,7]
[339387207,1727539847674,-151.0,0.0002388,7]
[339387208,1727539847683,-151.0,0.0002388,7]
[339387209,1727539847695,-151.0,0.0002388,7]
[339387210,1727539847705,-216.719885,0.0002388,7]
[339387211,1727539847715,-216.719885,0.0002388,7]
[339387212,1727539847724,-151.0,0.0002388,7]
[339387213,1727539847733,-151.0,0.0002388,7]
[339387214,1727539847742,-1934.142406,0.0002388,7]
[339387215,1727539847752,-1934.142406,0.0002388,7]
[339387216,1727539847761,-198.731403,0.0002388,7]
[339387217,1727539847770,-198.731403,0.0002388,7]
[339387218,1727539847779,-425.201333,0.0002388,7]
[339387219,1727539847789,-425.201333,0.0002388,7]
[339387220,1727539847798,-662.502,0.0002388,7]
[339387221,1727539847808,-662.502,0.0002388,7]
[339387222,1727539847817,-660.961228,0.0002388,7]
[339387223,1727539847826,-151.0,0.0002388,7]
[339387224,1727539847836,-151.0,0.0002388,7]
[339387225,1727539847845,-660.961228,0.0002388,7]
[339387226,1727539847854,-446.367327,0.0002388,7]
[339387227,1727539847864,-446.367327,0.0002388,7]
[339387228,1727539847873,-258.577652,0.0002388,7]
[339387229,1727539847882,-258.577652,0.0002388,7]
[339387230,1727539847891,-1048.136604,0.0002388,7]
[339387231,1727539847900,-1048.136604,0.0002388,7]
[339387232,1727539847910,-368.274568,0.0002388,7]
[339387233,1727539848010,-151.0,0.0002388,7]
[339387234,1727539848040,-151.0,0.0002388,7]
[339387235,1727539848050,-368.274568,0.0002388,7]
[339387236,1727539848059,-482.715943,0.0002388,7]
[339387237,1727539848069,-8.27007776,0.0002388,7]
[339387238,1727539848118,-46.0947413,0.0002388,7]
[339387266,1727540372871,6666.0,0.0002,2]
[339387267,1727540425279,231.34944856,0.0002,7]
[339387274,1727540606631,3000.0,0.000197,2]
[339387275,1727540607076,3000.0,0.0001971,2]
[339387276,1727540607585,3000.0,0.0001972,2]
[339387277,1727540608093,3000.0,0.0001973,2]
[339387278,1727540608615,3000.0,0.0001974,2]
[339387279,1727540609084,3000.0,0.0001975,2]
[339387280,1727540609541,3000.0,0.0001976,2]
[339387281,1727540610075,3000.0,0.0001977,2]
[339387282,1727540610462,3000.0,0.0001978,2]
[339387283,1727540610819,3000.0,0.0001979,2]
[339387284,1727540611387,3000.0,0.000198,2]
[339387285,1727540611841,3000.0,0.0001981,2]
[339387286,1727540612236,3000.0,0.0001982,2]
[339387287,1727540612733,3000.0,0.0001983,2]
[339387288,1727540613163,3000.0,0.0001984,2]
[339387289,1727540613878,3000.0,0.0001985,2]
[339387290,1727540614378,3000.0,0.0001986,2]
[339387291,1727540615117,3000.0,0.0001987,2]
[339387292,1727540615675,3000.0,0.0001988,2]
[339387293,1727540616123,3000.0,0.0001989,2]
[339387294,1727540616566,3000.0,0.000199,2]
[339387295,1727540617146,3000.0,0.0001991,2]
[339387296,1727540617672,3000.0,0.0001992,2]
[339387297,1727540618212,3000.0,0.0001993,2]
[339387298,1727540618657,3000.0,0.0001994,2]
[339387299,1727540619042,3000.0,0.0001995,2]
[339387300,1727540619956,3000.0,0.0001996,2]
[339387301,1727540620493,3000.0,0.0001997,2]
[339387302,1727540620867,3000.0,0.0001998,2]
[339387303,1727540621316,3000.0,0.0001999,2]
[339387304,1727540621771,3000.0,0.0002,2]
[339387305,1727540666732,563.518387,0.00019072,2]
[339387308,1727540713868,250.0,0.00019195,2]
[339387309,1727540713985,250.0,0.00019247,2]
[339387310,1727540714435,250.0,0.000193,2]
[339387311,1727540714664,250.0,0.00019353,2]
[339387312,1727540714871,250.0,0.00019405,2]
[339387313,1727540715145,250.0,0.00019458,2]
[339387314,1727540715370,250.0,0.0001951,2]
[339387315,1727540715788,250.0,0.00019563,2]
[339387316,1727540716054,250.0,0.00019616,2]
[339387317,1727540716305,250.0,0.00019668,2]
[339387318,1727540716507,250.0,0.00019721,2]
[339387319,1727540716768,250.0,0.00019774,2]
[339387320,1727540716989,250.0,0.00019826,2]
[339387321,1727540717354,250.0,0.00019879,2]
[339387322,1727540717444,250.0,0.00019931,2]
[339387323,1727540717687,250.0,0.00019984,2]
[339387326,1727540743128,-352.26420849,0.0002001,2]
[339387327,1727540747116,-198.38286415,0.0002001,2]
[339387330,1727540793983,3835.23031851,0.0001997,2]
[339387331,1727540817951,1000.0,0.0002,2]
[339387333,1727540827117,-484.97493916,0.0002001,2]
[339387334,1727540833261,-1964.3779882,0.0002001,2]
[339387335,1727540833283,-2899.40948963,0.0002002,2]
[339387340,1727540844244,-100.59051037,0.0002002,2]
[339387341,1727540844267,-3000.0,0.0002003,2]
[339387342,1727540844292,-250.0,0.00020037,2]
[339387343,1727540844316,-300.0,0.00020039,2]
[339387344,1727540844338,-300.0,0.00020039,2]
[339387345,1727540844362,-3000.0,0.0002004,2]
[339387346,1727540844384,-3000.0,0.0002005,2]
[339387347,1727540844408,-500.0,0.00020058,2]
[339387348,1727540844430,-500.0,0.00020058,2]
[339387349,1727540844453,-500.0,0.00020058,2]
[339387350,1727540844475,-500.0,0.00020058,2]
[339387351,1727540844499,-500.0,0.00020058,2]
[339387352,1727540844522,-471.9457664,0.00020058,2]
[339387353,1727540844545,-500.0,0.00020058,2]
[339387354,1727540844566,-500.0,0.00020058,2]
[339387355,1727540844590,-500.0,0.00020058,2]
[339387356,1727540844611,-500.0,0.00020058,2]
[339387357,1727540844632,-500.0,0.00020058,2]
[339387358,1727540844655,-500.0,0.00020058,2]
[339387359,1727540844679,-500.0,0.00020058,2]
[339387360,1727540844705,-500.0,0.00020058,2]
[339387361,1727540844729,-500.0,0.00020058,2]
[339387362,1727540844751,-500.0,0.00020058,2]
[339387363,1727540844776,-500.0,0.00020058,2]
[339387364,1727540844798,-500.0,0.00020058,2]
[339387365,1727540844821,-28.30723989,0.00020058,2]
[339387367,1727540852116,-243.40916999,0.00020058,2]
[339387368,1727540858026,1632.27774733,0.000188,2]
[339387371,1727540897511,5464.13794247,0.0002,2]
[339387374,1727540915704,15062.30038691,0.00014,4]
[339387375,1727540918458,727.8180524,0.00019265,2]
[339387376,1727540919034,214.0,0.000195,10]
[339387377,1727540919126,19512.8676132,0.00014,2]
[339387378,1727540919509,21196.53525692,0.0001,2]
[339387379,1727540919534,17258.38257586,0.0001,2]
[339387380,1727540920544,3677.81505126,0.00018,10]
[339387387,1727540949205,-2988.66167249,0.0002006,2]
[339387388,1727540954102,-11.33832751,0.0002006,2]
[339387389,1727540954124,-1640.06044195,0.0002007,2]
[339387390,1727540954159,-1359.93955805,0.0002007,2]
[339387391,1727540954179,-300.0,0.00020079,2]
[339387392,1727540954200,-691.48383688,0.0002008,2]
[339387393,1727540955123,-2213.6262615,0.0002008,2]
[339387394,1727540957180,-94.88990162,0.0002008,2]
[339387395,1727540957202,-300.0,0.00020088,2]
[339387396,1727540957224,-250.0,0.00020089,2]
[339387397,1727540957246,-3000.0,0.0002009,2]
[339387398,1727540957269,-500.0,0.00020099,2]
[339387399,1727540957291,-500.0,0.00020099,2]
[339387400,1727540957314,-500.0,0.00020099,2]
[339387401,1727540957337,-500.0,0.00020099,2]
[339387402,1727540957362,-500.0,0.00020099,2]
[339387403,1727540957385,-500.0,0.00020099,2]
[339387404,1727540957409,-500.0,0.00020099,2]
[339387405,1727540957434,-202.64980775,0.00020099,2]
[339387406,1727540957457,-500.0,0.00020099,2]
[339387407,1727540957478,-500.0,0.00020099,2]
[339387408,1727540957502,-562.24655327,0.00020099,2]
[339387409,1727540957525,-3000.0,0.000201,2]
[339387410,1727540957664,-3000.0,0.0002011,2]
[339387411,1727540957690,-3000.0,0.0002012,2]
[339387412,1727540957715,-3000.0,0.0002013,2]
[339387413,1727540957739,-500.0,0.00020133,2]
[339387414,1727540957761,-3000.0,0.0002014,2]
[339387415,1727540957783,-250.0,0.00020142,2]
[339387416,1727540957808,-3000.0,0.0002015,2]
[339387417,1727540957831,-500.0,0.0002015,2]
[339387418,1727540957855,-3000.0,0.0002016,2]
[339387419,1727540957876,-3000.0,0.0002017,2]
[339387420,1727540957898,-3000.0,0.0002018,2]
[339387421,1727540957919,-3000.0,0.0002019,2]
[339387422,1727540957943,-250.0,0.00020195,2]
[339387423,1727540957965,-3000.0,0.000202,2]
[339387424,1727540957989,-3000.0,0.0002021,2]
[339387425,1727540958011,-501.47214977,0.0002022,2]
[339387426,1727540958032,-3000.0,0.0002022,2]
[339387427,1727540958054,-3000.0,0.0002023,2]
[339387428,1727540958076,-3000.0,0.0002024,2]
[339387429,1727540958098,-3000.0,0.0002025,2]
[339387430,1727540958121,-3000.0,0.0002026,2]
[339387431,1727540958143,-3000.0,0.0002027,2]
[339387432,1727540958166,-290.88346089,0.00020279,2]
[339387433,1727540958189,-196.68453462,0.00020279,2]
[339387434,1727540958211,-500.0,0.00020279,2]
[339387435,1727540958236,-617.55866601,0.00020279,2]
[339387436,1727540958258,-500.0,0.00020279,2]
[339387437,1727540958281,-3000.0,0.0002028,2]
[339387438,1727540958303,-3000.0,0.0002029,2]
[339387439,1727540958327,-3000.0,0.000203,2]
[339387440,1727540958348,-3000.0,0.0002031,2]
[339387441,1727540958372,-3000.0,0.0002032,2]
[339387442,1727540958395,-3000.0,0.0002033,2]
[339387443,1727540958418,-3370.639657,0.0002034,2]
[339387444,1727540958440,-1136.8487029,0.00020377,2]
[339387445,1727540958462,-500.0,0.0002065,2]
[339387446,1727540958482,-647.46606309,0.0002065,2]